[Event "Swedish Chess Championship 2019: Minior-SM"]
[Site "Stiga Sports Arena, Arenatorget 1, Eskilstuna, Sweden, Sweden"]
[Date "2019.07.13"]
[Round "8.6"]
[White "Muntean, Felix"]
[Black "Backlund, Elias"]
[Result "0-1"]
[TimeControl "90 minutes for 40 moves + 30 minutes for the rest of the game + 30 seconds per move from move one"]
[WhiteFideId "1054465"]
[BlackFideId "1753207"]
[WhiteElo "1377"]
[BlackElo "1656"]

1. e4 {[%clk 01:30:57]} {[%emt 00:00:03]} d5 {[%clk 01:30:46]} {[%emt
00:00:14]} 2. exd5 {[%clk 01:31:22]} {[%emt 00:00:05]} Qxd5 {[%clk 01:31:11]}
{[%emt 00:00:06]} 3. Nc3 {[%clk 01:31:31]} {[%emt 00:00:21]} Qa5 {[%clk
01:31:25]} {[%emt 00:00:15]} 4. d4 {[%clk 01:31:20]} {[%emt 00:00:41]} Nf6
{[%clk 01:31:37]} {[%emt 00:00:17]} 5. Nf3 {[%clk 01:31:24]} {[%emt 00:00:26]}
Bg4 {[%clk 01:31:54]} {[%emt 00:00:12]} 6. h3 {[%clk 01:29:55]} {[%emt
00:02:00]} Bh5 {[%clk 01:32:04]} {[%emt 00:00:20]} 7. Bb5+ {[%clk 01:29:00]}
{[%emt 00:01:24]} c6 {[%clk 01:32:07]} {[%emt 00:00:27]} 8. Bc4 {[%clk
01:28:31]} {[%emt 00:00:59]} e6 {[%clk 01:32:13]} {[%emt 00:00:24]} 9. Qd3
{[%clk 01:27:51]} {[%emt 00:01:09]} Be7 {[%clk 01:30:56]} {[%emt 00:01:47]} 10.
O-O {[%clk 01:25:51]} {[%emt 00:02:31]} O-O {[%clk 01:29:02]} {[%emt 00:02:24]}
11. Ne4 {[%clk 01:24:42]} {[%emt 00:01:39]} Bg6 {[%clk 01:28:07]} {[%emt
00:01:25]} 12. Nxf6+ {[%clk 01:24:21]} {[%emt 00:00:50]} Bxf6 {[%clk 01:28:30]}
{[%emt 00:00:09]} 13. Qb3 {[%clk 01:24:11]} {[%emt 00:00:40]} Qc7 {[%clk
01:26:01]} {[%emt 00:02:58]} 14. Bd3 {[%clk 01:23:51]} {[%emt 00:00:50]} Bxd3
{[%clk 01:25:10]} {[%emt 00:01:22]} 15. Qxd3 {[%clk 01:23:42]} {[%emt
00:00:38]} Nd7 {[%clk 01:24:20]} {[%emt 00:01:20]} 16. Ng5 {[%clk 01:23:14]}
{[%emt 00:00:58]} Bxg5 {[%clk 01:24:14]} {[%emt 00:00:36]} 17. Bxg5 {[%clk
01:23:22]} {[%emt 00:00:22]} h6 {[%clk 01:24:24]} {[%emt 00:00:20]} 18. Bh4
{[%clk 01:23:14]} {[%emt 00:00:37]} Qf4 {[%clk 01:21:33]} {[%emt 00:03:21]} 19.
Bg3 {[%clk 01:22:32]} {[%emt 00:01:14]} Qf6 {[%clk 01:21:29]} {[%emt 00:00:33]}
20. Rfe1 {[%clk 01:21:43]} {[%emt 00:01:19]} Rad8 {[%clk 01:20:19]} {[%emt
00:01:39]} 21. Qe4 {[%clk 01:19:54]} {[%emt 00:02:19]} Nb6 {[%clk 01:19:05]}
{[%emt 00:01:46]} 22. Be5 {[%clk 01:19:03]} {[%emt 00:01:20]} Qg5 {[%clk
01:16:48]} {[%emt 00:02:46]} 23. Re3 {[%clk 01:18:07]} {[%emt 00:01:26]} f6
{[%clk 01:13:22]} {[%emt 00:03:57]} 24. Bc7 {[%clk 01:16:53]} {[%emt 00:01:44]}
Rde8 {[%clk 01:12:44]} {[%emt 00:01:07]} 25. Rg3 {[%clk 01:15:55]} {[%emt
00:01:29]} Qf5 {[%clk 01:11:36]} {[%emt 00:01:38]} 26. Qh4 {[%clk 01:15:27]}
{[%emt 00:00:58]} Kh7 {[%clk 01:08:17]} {[%emt 00:03:50]} 27. c3 {[%clk
01:14:11]} {[%emt 00:01:46]} Nd5 {[%clk 01:06:00]} {[%emt 00:02:47]} 28. Bd6
{[%clk 01:13:40]} {[%emt 00:01:01]} Rf7 {[%clk 01:04:01]} {[%emt 00:02:28]} 29.
c4 {[%clk 01:13:45]} {[%emt 00:00:26]} Nb6 {[%clk 01:03:56]} {[%emt 00:00:34]}
30. b3 {[%clk 01:13:21]} {[%emt 00:00:55]} Rd7 {[%clk 01:00:14]} {[%emt
00:04:11]} 31. Bc5 {[%clk 01:10:42]} {[%emt 00:03:09]} Red8 {[%clk 00:58:10]}
{[%emt 00:02:34]} 32. Rf3 {[%clk 01:09:32]} {[%emt 00:01:40]} Qg6 {[%clk
00:50:35]} {[%emt 00:08:05]} 33. Re1 {[%clk 01:07:55]} {[%emt 00:02:07]} Re8
{[%clk 00:49:26]} {[%emt 00:01:38]} 34. Rg3 {[%clk 01:05:48]} {[%emt 00:02:37]}
Qf5 {[%clk 00:43:24]} {[%emt 00:06:33]} 35. Ree3 {[%clk 01:05:03]} {[%emt
00:01:16]} e5 {[%clk 00:42:51]} {[%emt 00:01:02]} 36. Kh2 {[%clk 01:03:10]}
{[%emt 00:02:22]} g5 {[%clk 00:39:14]} {[%emt 00:04:08]} 37. Qh5 {[%clk
01:02:01]} {[%emt 00:01:39]} Qg6 {[%clk 00:37:35]} {[%emt 00:02:11]} 38. Qxg6+
{[%clk 01:00:55]} {[%emt 00:01:36]} Kxg6 {[%clk 00:37:53]} {[%emt 00:00:12]} 39.
h4 {[%clk 00:59:55]} {[%emt 00:01:30]} Nc8 {[%clk 00:35:41]} {[%emt 00:02:41]}
40. hxg5 {[%clk 00:59:10]} {[%emt 00:01:14]} hxg5 {[%clk 00:34:54]} {[%emt
00:01:17]} 41. dxe5 {[%clk 00:59:01]} {[%emt 00:00:39]} Rxe5 {[%clk 00:33:52]}
{[%emt 00:01:32]} 42. Rxe5 {[%clk 00:58:21]} {[%emt 00:01:10]} fxe5 {[%clk
00:34:13]} {[%emt 00:00:09]} 43. Re3 {[%clk 00:58:20]} {[%emt 00:00:31]} b6
{[%clk 00:33:01]} {[%emt 00:01:42]} 44. Bb4 {[%clk 00:58:02]} {[%emt 00:00:47]}
Kf5 {[%clk 00:32:22]} {[%emt 00:01:08]} 45. Kg3 {[%clk 00:57:14]} {[%emt
00:01:18]} Nd6 {[%clk 00:28:49]} {[%emt 00:04:05]} 46. Bxd6 {[%clk 00:55:56]}
{[%emt 00:01:47]} Rxd6 {[%clk 00:29:11]} {[%emt 00:00:07]} 47. Rf3+ {[%clk
00:55:53]} {[%emt 00:00:33]} Kg6 {[%clk 00:28:45]} {[%emt 00:00:56]} 48. Re3
{[%clk 00:55:56]} {[%emt 00:00:27]} Kf5 {[%clk 00:27:39]} {[%emt 00:01:36]} 49.
Rf3+ {[%clk 00:55:53]} {[%emt 00:00:34]} Kg6 {[%clk 00:27:45]} {[%emt
00:00:24]} 50. Re3 {[%clk 00:55:31]} {[%emt 00:00:52]} Kf6 {[%clk 00:26:24]}
{[%emt 00:01:50]} 51. Kg4 {[%clk 00:54:25]} {[%emt 00:01:36]} Rd4+ {[%clk
00:25:43]} {[%emt 00:01:12]} 52. Kf3 {[%clk 00:54:15]} {[%emt 00:00:39]} Kf5
{[%clk 00:18:55]} {[%emt 00:07:18]} 53. g3 {[%clk 00:53:45]} {[%emt 00:01:00]}
e4+ {[%clk 00:17:02]} {[%emt 00:02:23]} 54. Kg2 {[%clk 00:53:58]} {[%emt
00:00:17]} Rd3 {[%clk 00:14:24]} {[%emt 00:03:09]} 55. a3 {[%clk 00:53:31]}
{[%emt 00:00:58]} g4 {[%clk 00:11:42]} {[%emt 00:03:11]} 56. a4 {[%clk
00:53:23]} {[%emt 00:00:39]} Ke5 {[%clk 00:10:50]} {[%emt 00:01:22]} 57. Kf1
{[%clk 00:53:03]} {[%emt 00:00:50]} Kd4 {[%clk 00:09:39]} {[%emt 00:01:42]} 58.
Ke2 {[%clk 00:52:05]} {[%emt 00:01:27]} Rxe3+ {[%clk 00:09:40]} {[%emt
00:00:29]} 59. fxe3+ {[%clk 00:52:15]} {[%emt 00:00:20]} Kc3 {[%clk 00:09:56]}
0-1

[Event "Swedish Chess Championship 2019: Minior-SM"]
[Site "Stiga Sports Arena, Arenatorget 1, Eskilstuna, Sweden, Sweden"]
[Date "2019.07.14"]
[Round "9.1"]
[White "Wikman, Viktor"]
[Black "Falkevall, Axel"]
[Result "1/2-1/2"]
[TimeControl "90 minutes for 40 moves + 30 minutes for the rest of the game + 30 seconds per move from move one"]
[WhiteFideId "1744720"]
[BlackFideId "1735560"]
[WhiteElo "1633"]
[BlackElo "2067"]

1. e4 {[%clk 01:30:57]} {[%emt 00:00:02]} e6 {[%clk 01:30:55]} {[%emt
00:00:06]} 2. d4 {[%clk 01:31:23]} {[%emt 00:00:04]} d5 {[%clk 01:31:20]}
{[%emt 00:00:05]} 3. Nc3 {[%clk 01:31:45]} {[%emt 00:00:08]} Nf6 {[%clk
01:31:46]} {[%emt 00:00:04]} 4. Bg5 {[%clk 01:32:00]} {[%emt 00:00:15]} Be7
{[%clk 01:32:04]} {[%emt 00:00:11]} 5. e5 {[%clk 01:32:24]} {[%emt 00:00:08]}
Nfd7 {[%clk 01:32:29]} {[%emt 00:00:05]} 6. Bxe7 {[%clk 01:32:47]} {[%emt
00:00:07]} Qxe7 {[%clk 01:32:53]} {[%emt 00:00:04]} 7. f4 {[%clk 01:32:25]}
{[%emt 00:00:53]} a6 {[%clk 01:33:18]} {[%emt 00:00:05]} 8. Nf3 {[%clk
01:32:47]} {[%emt 00:00:07]} c5 {[%clk 01:33:35]} {[%emt 00:00:13]} 9. Be2
{[%clk 01:31:49]} {[%emt 00:01:29]} Nc6 {[%clk 01:33:33]} {[%emt 00:00:32]} 10.
dxc5 {[%clk 01:30:03]} {[%emt 00:02:16]} Qxc5 {[%clk 01:33:06]} {[%emt
00:00:56]} 11. Qd2 {[%clk 01:16:47]} {[%emt 00:13:46]} b5 {[%clk 01:32:20]}
{[%emt 00:01:15]} 12. h4 {[%clk 01:12:36]} {[%emt 00:04:42]} Bb7 {[%clk
01:22:23]} {[%emt 00:10:27]} 13. O-O-O {[%clk 01:03:47]} {[%emt 00:09:19]} Qe7
{[%clk 01:13:47]} {[%emt 00:09:04]} 14. Nd4 {[%clk 00:48:27]} {[%emt 00:15:52]}
Nxd4 {[%clk 01:04:42]} {[%emt 00:09:35]} 15. Qxd4 {[%clk 00:48:55]} {[%emt
00:00:02]} Qc5 {[%clk 01:04:23]} {[%emt 00:00:49]} 16. Bg4 {[%clk 00:39:45]}
{[%emt 00:09:40]} Rc8 {[%clk 00:57:17]} {[%emt 00:07:35]} 17. Rd2 {[%clk
00:33:50]} {[%emt 00:06:26]} Qxd4 {[%clk 00:52:50]} {[%emt 00:04:57]} 18. Rxd4
{[%clk 00:34:11]} {[%emt 00:00:09]} Ke7 {[%clk 00:51:51]} {[%emt 00:01:26]} 19.
Re1 {[%clk 00:24:53]} {[%emt 00:09:51]} h5 {[%clk 00:50:26]} {[%emt 00:01:54]}
20. Bf3 {[%clk 00:21:48]} {[%emt 00:03:36]} g6 {[%clk 00:49:22]} {[%emt
00:01:34]} 21. a4 {[%clk 00:18:51]} {[%emt 00:03:27]} Rc4 {[%clk 00:45:25]}
{[%emt 00:04:20]} 22. Rxc4 {[%clk 00:18:07]} {[%emt 00:01:20]} bxc4 {[%clk
00:45:46]} {[%emt 00:00:10]} 23. Kd2 {[%clk 00:04:43]} {[%emt 00:13:54]} Nc5
{[%clk 00:43:02]} {[%emt 00:03:12]} 24. Ke3 {[%clk 00:02:42]} {[%emt 00:02:32]}
Bc6 {[%clk 00:42:29]} {[%emt 00:01:00]} 25. Kd4 {[%clk 00:02:17]} {[%emt
00:00:58]} Nxa4 {[%clk 00:41:49]} {[%emt 00:01:10]} 26. Nxa4 {[%clk 00:02:41]}
{[%emt 00:00:07]} Bxa4 {[%clk 00:42:10]} {[%emt 00:00:09]} 27. Ra1 {[%clk
00:02:44]} {[%emt 00:00:26]} Bb5 {[%clk 00:41:31]} {[%emt 00:01:07]} 28. c3
{[%clk 00:02:39]} {[%emt 00:00:37]} Kd7 {[%clk 00:40:51]} {[%emt 00:01:08]} 29.
Bd1 {[%clk 00:02:29]} {[%emt 00:00:42]} Rb8 {[%clk 00:37:18]} {[%emt 00:03:58]}
30. Kc5 {[%clk 00:01:13]} {[%emt 00:01:51]} Rc8+ {[%clk 00:35:31]} {[%emt
00:02:14]} 31. Kd4 {[%clk 00:00:57]} {[%emt 00:00:49]} Kc6 {[%clk 00:34:16]}
{[%emt 00:01:44]} 32. Ra3 {[%clk 00:00:31]} {[%emt 00:00:57]} Kb6 {[%clk
00:33:52]} {[%emt 00:00:51]} 33. Ra2 {[%clk 00:00:35]} {[%emt 00:00:29]} a5
{[%clk 00:26:33]} {[%emt 00:07:49]} 34. Bc2 {[%clk 00:00:38]} {[%emt 00:00:27]}
Bd7 {[%clk 00:25:40]} {[%emt 00:01:18]} 35. Bd1 {[%clk 00:00:34]} {[%emt
00:00:40]} Rf8 {[%clk 00:23:49]} {[%emt 00:02:19]} 36. g3 {[%clk 00:00:35]}
{[%emt 00:00:30]} Ra8 {[%clk 00:21:52]} {[%emt 00:02:24]} 37. Bc2 {[%clk
00:00:32]} {[%emt 00:00:36]} a4 {[%clk 00:21:26]} {[%emt 00:00:54]} 38. Ra3
{[%clk 00:00:58]} {[%emt 00:00:05]} Ra5 {[%clk 00:21:27]} {[%emt 00:00:28]} 39.
Ra2 {[%clk 00:01:05]} {[%emt 00:00:25]} Kc7 {[%clk 00:21:26]} {[%emt 00:00:25]}
40. Bd1 {[%clk 00:01:07]} {[%emt 00:00:33]} Kd8 {[%clk 00:21:09]} {[%emt
00:00:43]} 41. g4 {[%clk 00:00:31]} {[%emt 00:01:09]} hxg4 {[%clk 00:21:16]}
{[%emt 00:00:24]} 42. Bxg4 {[%clk 00:00:57]} {[%emt 00:00:04]} Ke7 {[%clk
00:20:12]} {[%emt 00:01:29]} 43. h5 {[%clk 00:27:37]} {[%emt 00:03:55]} gxh5
{[%clk 00:50:20]} {[%emt 00:00:23]} 44. Bxh5 {[%clk 00:28:00]} {[%emt
00:00:06]} Ra8 {[%clk 00:50:28]} {[%emt 00:00:20]} 45. Bd1 {[%clk 00:26:37]}
{[%emt 00:01:55]} Ra5 {[%clk 00:47:28]} {[%emt 00:03:30]} 46. Bf3 {[%clk
00:23:00]} {[%emt 00:04:07]} f5 {[%clk 00:43:59]} {[%emt 00:03:57]} 47. Ra1
{[%clk 00:21:02]} {[%emt 00:02:30]} Ra7 {[%clk 00:40:36]} {[%emt 00:03:48]} 48.
Ke3 {[%clk 00:16:49]} {[%emt 00:04:49]} Rb7 {[%clk 00:40:26]} {[%emt 00:00:38]}
49. Ra2 {[%clk 00:17:04]} {[%emt 00:00:17]} Rb8 {[%clk 00:40:24]} {[%emt
00:00:28]} 50. Bd1 {[%clk 00:14:13]} {[%emt 00:03:24]} Rh8 {[%clk 00:37:18]}
{[%emt 00:03:32]} 51. Bf3 {[%clk 00:12:36]} {[%emt 00:02:12]} Rh2 {[%clk
00:35:32]} {[%emt 00:02:13]} 52. Be2 {[%clk 00:11:04]} {[%emt 00:02:05]} Be8
{[%clk 00:34:00]} {[%emt 00:01:58]} 53. Ra1 {[%clk 00:08:21]} {[%emt 00:03:16]}
Kf8 {[%clk 00:33:37]} {[%emt 00:00:46]} 54. Rg1 {[%clk 00:07:17]} {[%emt
00:01:41]} Bh5 {[%clk 00:33:17]} {[%emt 00:00:41]} 55. Bxh5 {[%clk 00:05:08]}
{[%emt 00:02:48]} Rxh5 {[%clk 00:33:32]} {[%emt 00:00:15]} 56. Ra1 {[%clk
00:01:34]} {[%emt 00:04:04]} Rh3+ {[%clk 00:30:17]} {[%emt 00:03:41]} 57. Kd4
{[%clk 00:01:53]} {[%emt 00:00:14]} Rf3 {[%clk 00:30:39]} {[%emt 00:00:07]} 58.
Rxa4 {[%clk 00:02:09]} {[%emt 00:00:15]} Rxf4+ {[%clk 00:30:58]} {[%emt
00:00:10]} 59. Kc5 {[%clk 00:02:07]} {[%emt 00:00:33]} Rg4 {[%clk 00:30:45]}
{[%emt 00:00:38]} 60. Kd6 {[%clk 00:00:35]} {[%emt 00:02:07]} Rg6 {[%clk
00:28:43]} {[%emt 00:02:29]} 61. Ra1 {[%clk 00:00:41]} {[%emt 00:00:27]} Rh6
{[%clk 00:25:11]} {[%emt 00:04:02]} 62. Rb1 {[%clk 00:00:32]} {[%emt 00:00:40]}
Rg6 {[%clk 00:23:50]} {[%emt 00:01:50]} 1/2-1/2

[Event "Swedish Chess Championship 2019: Minior-SM"]
[Site "Stiga Sports Arena, Arenatorget 1, Eskilstuna, Sweden, Sweden"]
[Date "2019.07.14"]
[Round "9.2"]
[White "Johansson-Ohman, Linnea"]
[Black "Seo, Jung Hyun"]
[Result "1-0"]
[TimeControl "90 minutes for 40 moves + 30 minutes for the rest of the game + 30 seconds per move from move one"]
[WhiteFideId "1737260"]
[BlackFideId "1735667"]
[WhiteElo "1529"]
[BlackElo "1575"]

1. c4 {[%clk 01:30:57]} {[%emt 00:00:03]} e6 {[%clk 01:30:57]} {[%emt
00:00:03]} 2. g3 {[%clk 01:31:15]} {[%emt 00:00:12]} d5 {[%clk 01:31:21]}
{[%emt 00:00:07]} 3. cxd5 {[%clk 01:31:24]} {[%emt 00:00:21]} exd5 {[%clk
01:31:47]} {[%emt 00:00:04]} 4. Bg2 {[%clk 01:31:45]} {[%emt 00:00:08]} c6
{[%clk 01:32:11]} {[%emt 00:00:05]} 5. e3 {[%clk 01:31:35]} {[%emt 00:00:41]}
Nf6 {[%clk 01:32:27]} {[%emt 00:00:14]} 6. Ne2 {[%clk 01:30:28]} {[%emt
00:01:37]} Be7 {[%clk 01:32:42]} {[%emt 00:00:16]} 7. d4 {[%clk 01:29:04]}
{[%emt 00:01:55]} Bf5 {[%clk 01:32:33]} {[%emt 00:00:38]} 8. Nbc3 {[%clk
01:28:57]} {[%emt 00:00:37]} O-O {[%clk 01:32:35]} {[%emt 00:00:28]} 9. O-O
{[%clk 01:28:40]} {[%emt 00:00:48]} Qc8 {[%clk 01:32:37]} {[%emt 00:00:28]} 10.
Re1 {[%clk 01:24:51]} {[%emt 00:04:19]} Re8 {[%clk 01:32:05]} {[%emt 00:01:02]}
11. Nf4 {[%clk 01:11:56]} {[%emt 00:13:24]} Bf8 {[%clk 01:31:36]} {[%emt
00:01:00]} 12. f3 {[%clk 01:10:08]} {[%emt 00:02:18]} Na6 {[%clk 01:26:54]}
{[%emt 00:05:12]} 13. e4 {[%clk 01:06:29]} {[%emt 00:04:09]} Be6 {[%clk
01:26:06]} {[%emt 00:01:18]} 14. exd5 {[%clk 00:51:47]} {[%emt 00:15:12]} Nxd5
{[%clk 01:26:33]} {[%emt 00:00:02]} 15. Nxe6 {[%clk 00:47:27]} {[%emt
00:04:50]} Nxc3 {[%clk 01:26:23]} {[%emt 00:00:39]} 16. bxc3 {[%clk 00:47:44]}
{[%emt 00:00:13]} Rxe6 {[%clk 01:26:50]} {[%emt 00:00:03]} 17. Bf4 {[%clk
00:45:37]} {[%emt 00:02:37]} Bd6 {[%clk 01:23:28]} {[%emt 00:03:53]} 18. Bxd6
{[%clk 00:37:05]} {[%emt 00:09:02]} Rxd6 {[%clk 01:23:56]} {[%emt 00:00:02]} 19.
Qb3 {[%clk 00:34:46]} {[%emt 00:02:49]} Qd7 {[%clk 01:16:56]} {[%emt 00:07:30]}
20. Re5 {[%clk 00:28:05]} {[%emt 00:07:10]} Re6 {[%clk 01:02:48]} {[%emt
00:14:39]} 21. Bh3 {[%clk 00:26:28]} {[%emt 00:02:07]} Rae8 {[%clk 01:02:08]}
{[%emt 00:01:11]} 22. Bxe6 {[%clk 00:26:33]} {[%emt 00:00:25]} Rxe6 {[%clk
01:02:17]} {[%emt 00:00:21]} 23. Rxe6 {[%clk 00:26:39]} {[%emt 00:00:24]} fxe6
{[%clk 01:02:43]} {[%emt 00:00:04]} 24. Re1 {[%clk 00:26:16]} {[%emt 00:00:53]}
Kf7 {[%clk 01:03:10]} {[%emt 00:00:03]} 25. f4 {[%clk 00:24:34]} {[%emt
00:02:11]} Kf6 {[%clk 01:01:19]} {[%emt 00:02:20]} 26. Qb1 {[%clk 00:23:11]}
{[%emt 00:01:52]} h6 {[%clk 00:59:56]} {[%emt 00:01:53]} 27. g4 {[%clk
00:20:20]} {[%emt 00:03:21]} g6 {[%clk 00:56:51]} {[%emt 00:03:35]} 28. Qe4
{[%clk 00:19:41]} {[%emt 00:01:09]} Nc7 {[%clk 00:56:03]} {[%emt 00:01:19]} 29.
g5+ {[%clk 00:19:20]} {[%emt 00:00:51]} hxg5 {[%clk 00:56:19]} {[%emt
00:00:14]} 30. fxg5+ {[%clk 00:19:44]} {[%emt 00:00:06]} Kxg5 {[%clk 00:53:07]}
{[%emt 00:03:42]} 31. Qe5+ {[%clk 00:19:29]} {[%emt 00:00:45]} Kh6 {[%clk
00:53:33]} {[%emt 00:00:04]} 32. Re3 {[%clk 00:17:53]} {[%emt 00:02:06]} g5
{[%clk 00:54:01]} {[%emt 00:00:01]} 33. Qf6+ {[%clk 00:17:44]} {[%emt
00:00:39]} Kh5 {[%clk 00:54:07]} {[%emt 00:00:25]} 34. Rh3+ {[%clk 00:17:58]}
{[%emt 00:00:15]} 1-0

[Event "Swedish Chess Championship 2019: Minior-SM"]
[Site "Stiga Sports Arena, Arenatorget 1, Eskilstuna, Sweden, Sweden"]
[Date "2019.07.14"]
[Round "9.3"]
[White "Tran, Alva Ling"]
[Black "Strom-Engdahl, Alexander"]
[Result "0-1"]
[TimeControl "90 minutes for 40 moves + 30 minutes for the rest of the game + 30 seconds per move from move one"]
[WhiteFideId "1753223"]
[BlackFideId "1741586"]
[WhiteElo "1712"]
[BlackElo "1866"]

1. e4 {[%clk 01:30:59]} e5 {[%clk 01:29:41]} {[%emt 00:01:18]} 2. Nf3 {[%clk
01:31:07]} {[%emt 00:00:22]} Nf6 {[%clk 01:29:57]} {[%emt 00:00:14]} 3. Nxe5
{[%clk 01:30:43]} {[%emt 00:00:54]} d6 {[%clk 01:30:17]} {[%emt 00:00:09]} 4.
Nf3 {[%clk 01:31:04]} {[%emt 00:00:09]} Nxe4 {[%clk 01:30:39]} {[%emt
00:00:09]} 5. d3 {[%clk 01:31:20]} {[%emt 00:00:15]} Nf6 {[%clk 01:30:41]}
{[%emt 00:00:28]} 6. d4 {[%clk 01:31:18]} {[%emt 00:00:32]} d5 {[%clk
01:28:28]} {[%emt 00:02:43]} 7. Bd3 {[%clk 01:29:51]} {[%emt 00:01:57]} Bd6
{[%clk 01:26:43]} {[%emt 00:02:15]} 8. Bg5 {[%clk 01:26:26]} {[%emt 00:03:55]}
Qe7+ {[%clk 01:22:19]} {[%emt 00:04:54]} 9. Qe2 {[%clk 01:18:25]} {[%emt
00:08:30]} Qxe2+ {[%clk 01:22:02]} {[%emt 00:00:48]} 10. Kxe2 {[%clk 01:17:43]}
{[%emt 00:01:13]} Ne4 {[%clk 01:18:49]} {[%emt 00:03:42]} 11. Bh4 {[%clk
01:11:49]} {[%emt 00:06:24]} f5 {[%clk 01:10:13]} {[%emt 00:09:06]} 12. Nbd2
{[%clk 01:05:06]} {[%emt 00:07:13]} h6 {[%clk 01:07:41]} {[%emt 00:03:02]} 13.
g4 {[%clk 00:40:41]} {[%emt 00:24:55]} g5 {[%clk 01:05:42]} {[%emt 00:02:30]}
14. gxf5 {[%clk 00:40:15]} {[%emt 00:00:56]} Nxd2 {[%clk 01:05:27]} {[%emt
00:00:45]} 15. Kxd2 {[%clk 00:40:15]} {[%emt 00:00:30]} gxh4 {[%clk 01:05:44]}
{[%emt 00:00:13]} 16. Nxh4 {[%clk 00:40:07]} {[%emt 00:00:37]} Nc6 {[%clk
01:01:52]} {[%emt 00:04:22]} 17. Ke3 {[%clk 00:35:28]} {[%emt 00:05:09]} Nb4
{[%clk 00:56:11]} {[%emt 00:06:11]} 18. Bb5+ {[%clk 00:26:46]} {[%emt
00:09:11]} Bd7 {[%clk 00:54:36]} {[%emt 00:02:05]} 19. Bxd7+ {[%clk 00:26:46]}
{[%emt 00:00:30]} Kxd7 {[%clk 00:55:04]} {[%emt 00:00:03]} 20. Kd2 {[%clk
00:26:13]} {[%emt 00:01:04]} Nc6 {[%clk 00:52:20]} {[%emt 00:03:13]} 21. c3
{[%clk 00:23:47]} {[%emt 00:02:56]} Rhf8 {[%clk 00:51:31]} {[%emt 00:01:19]} 22.
Rag1 {[%clk 00:19:56]} {[%emt 00:04:21]} Bf4+ {[%clk 00:51:35]} {[%emt
00:00:26]} 23. Kd3 {[%clk 00:17:45]} {[%emt 00:02:41]} Bg5 {[%clk 00:50:52]}
{[%emt 00:01:14]} 24. Rg4 {[%clk 00:16:18]} {[%emt 00:01:57]} Bxh4 {[%clk
00:50:56]} {[%emt 00:00:27]} 25. Rxh4 {[%clk 00:16:37]} {[%emt 00:00:11]} Rf6
{[%clk 00:49:52]} {[%emt 00:01:32]} 26. Rg1 {[%clk 00:14:20]} {[%emt 00:02:47]}
Ne7 {[%clk 00:47:26]} {[%emt 00:02:56]} 27. Rg7 {[%clk 00:10:50]} {[%emt
00:03:58]} Kd6 {[%clk 00:47:01]} {[%emt 00:00:56]} 28. Rh7 {[%clk 00:09:59]}
{[%emt 00:01:21]} Nxf5 {[%clk 00:46:18]} {[%emt 00:01:14]} 29. Rg4 {[%clk
00:04:17]} {[%emt 00:06:13]} Raf8 {[%clk 00:45:31]} {[%emt 00:01:16]} 30. h4
{[%clk 00:03:22]} {[%emt 00:01:25]} R6f7 {[%clk 00:45:10]} {[%emt 00:00:51]} 31.
Rxf7 {[%clk 00:02:34]} {[%emt 00:01:19]} Rxf7 {[%clk 00:45:23]} {[%emt
00:00:17]} 32. Ke2 {[%clk 00:02:00]} {[%emt 00:01:05]} Rg7 {[%clk 00:44:42]}
{[%emt 00:01:11]} 33. Rf4 {[%clk 00:01:46]} {[%emt 00:00:44]} Ke6 {[%clk
00:45:04]} {[%emt 00:00:08]} 34. Kf3 {[%clk 00:01:42]} {[%emt 00:00:33]} h5
{[%clk 00:44:58]} {[%emt 00:00:37]} 35. b3 {[%clk 00:01:35]} {[%emt 00:00:38]}
Nh6 {[%clk 00:44:53]} {[%emt 00:00:34]} 36. Rf8 {[%clk 00:00:47]} {[%emt
00:01:19]} Rf7+ {[%clk 00:45:18]} {[%emt 00:00:05]} 37. Rxf7 {[%clk 00:01:09]}
{[%emt 00:00:08]} Kxf7 {[%clk 00:45:42]} {[%emt 00:00:06]} 38. Kf4 {[%clk
00:01:23]} {[%emt 00:00:16]} Kf6 {[%clk 00:46:09]} {[%emt 00:00:04]} 39. c4
{[%clk 00:01:06]} {[%emt 00:00:47]} c6 {[%clk 00:46:33]} {[%emt 00:00:05]} 40.
Kf3 {[%clk 00:00:36]} {[%emt 00:01:01]} Nf5 {[%clk 00:46:37]} {[%emt 00:00:25]}
41. cxd5 {[%clk 00:30:10]} {[%emt 00:00:57]} cxd5 {[%clk 01:17:01]} {[%emt
00:00:06]} 42. Ke2 {[%clk 00:30:01]} {[%emt 00:00:38]} Nxh4 {[%clk 01:17:21]}
{[%emt 00:00:11]} 0-1